bitfinex-derivatives/quotes_ETHF0:USTF0_20250923
["timestamp","ask_amount","ask_price","bid_price","bid_amount"]
[1758620767181,0.251,4194.1,4194.0,0.4289]
[1758620767369,3.2078,4194.2,4194.0,0.4289]
[1758620767570,3.4588,4194.2,4194.0,0.4289]
[1758620767870,0.42877,4195.5,4194.0,0.4289]
[1758620767871,3.2078,4194.8,4194.0,1.07227]
[1758620768176,0.251,4194.7,4194.6,0.42885]
[1758620768574,3.2078,4194.8,4194.6,0.42885]
[1758620768771,0.251,4194.7,4194.6,0.42885]
[1758620770575,3.2078,4194.8,4194.6,0.42885]
[1758620770777,0.251,4194.7,4194.6,0.42885]
[1758620772279,0.251,4194.7,4194.6,1.18215]
[1758620773678,3.2078,4194.8,4194.7,0.7533]
[1758620773878,3.4578,4194.8,4194.7,0.7533]
[1758620774777,3.2078,4194.8,4194.7,0.7533]
[1758620776481,0.25,4195.1,4195.0,0.99161]
[1758620776788,0.25,4195.1,4195.0,1.31631]
[1758620777371,3.2078,4195.3,4195.2,0.42879]
[1758620777574,3.4578,4195.3,4195.2,0.97349]
[1758620778186,3.66959095,4195.3,4195.2,0.97349]
[1758620778670,7.66959095,4195.3,4194.5,0.1342]
[1758620778876,3.2078,4194.7,4194.2,0.42889]
[1758620779071,0.21179095,4194.6,4194.4,0.42887]
[1758620779279,3.2078,4194.7,4194.6,0.75355]
[1758620779483,3.41958963,4194.7,4194.6,0.75355]
[1758620779684,7.66958606,4194.7,4194.3,0.75357]
[1758620779984,0.21178606,4194.6,4194.1,0.4289]
[1758620780279,3.2078,4194.2,4194.1,0.4289]
[1758620780483,3.67058606,4194.2,4194.1,0.7536]
[1758620782785,3.41958606,4194.2,4194.1,0.9736]
[1758620783088,3.67058606,4194.2,4194.1,1.1822]
[1758620783784,3.41958606,4194.2,4194.1,1.1822]
[1758620784084,3.66958606,4194.2,4194.1,1.1822]
[1758620784688,3.41958606,4194.2,4194.1,1.1822]
[1758620784994,3.67001055,4194.2,4194.1,1.1822]
[1758620786985,3.67020394,4194.2,4194.1,1.1822]
[1758620787383,3.42020394,4194.2,4194.1,1.1822]
[1758620787779,0.21240394,4194.2,4194.1,1.1822]
[1758620787980,0.25,4194.6,4194.5,0.42886]
[1758620788184,0.46259494,4194.6,4194.5,1.31636]
[1758620788987,0.21259494,4194.6,4194.5,1.31636]
[1758620790994,0.21259494,4194.6,4194.5,0.88776]
[1758620791195,0.21259494,4194.6,4194.5,1.11186]
[1758620791394,0.21259494,4194.6,4194.5,1.33306]
[1758620793293,0.75761106,4194.6,4194.5,1.33306]
[1758620794292,0.75761106,4194.6,4194.5,0.4589]
[1758620794596,0.42886,4194.5,4194.1,0.315]
[1758620794789,3.2078,4194.2,4194.1,0.315]
[1758620794988,3.96541106,4194.2,4194.1,0.315]
[1758620795395,4.39430106,4194.2,4194.1,0.315]
[1758620796284,4.64430106,4194.2,4194.1,0.315]
[1758620796891,4.64430106,4194.2,4194.0,0.4492]
[1758620797092,0.75761106,4194.1,4194.0,0.4492]
[1758620797293,0.75837493,4194.1,4194.0,0.4492]
[1758620801401,0.75837493,4194.1,4194.0,0.1342]
[1758620801597,0.42895,4193.7,4193.6,0.315]
[1758620801794,4.10010881,4193.7,4193.6,0.315]
[1758620802102,4.64512493,4193.7,4193.6,0.315]
[1758620805195,0.42899,4193.2,4193.1,0.315]
[1758620805396,4.64280317,4193.2,4193.1,0.315]
[1758620805594,0.42902,4192.9,4192.8,0.315]
[1758620805794,1.43498893,4192.9,4192.8,0.315]
[1758620806205,0.89137881,4192.9,4192.8,0.315]
[1758620808699,0.46235881,4192.9,4192.5,0.1283]
[1758620809003,3.2078,4192.6,4192.5,0.1283]
[1758620809202,4.21333125,4192.6,4192.5,0.4433]
[1758620809404,3.99997244,4192.6,4192.5,0.4433]
[1758620809604,4.21029974,4192.6,4192.5,0.4433]
[1758620810198,3.6671273,4192.6,4192.5,0.4433]
[1758620810399,3.6671273,4192.6,4192.5,0.04690496]
[1758620811109,3.4181273,4192.6,4192.5,0.04690496]
[1758620811316,3.6671273,4192.6,4192.5,0.36190496]
[1758620811613,3.4181273,4192.6,4192.5,0.36190496]
[1758620812011,3.6671273,4192.6,4192.5,0.36190496]
[1758620813216,3.6671273,4192.6,4192.5,0.58600496]
[1758620813809,3.66677033,4192.6,4192.5,0.58600496]
[1758620814213,3.41777033,4192.6,4192.5,0.80720496]
[1758620814418,3.66677033,4192.6,4192.5,0.80720496]
[1758620814813,3.66677033,4192.6,4192.5,0.58600496]
[1758620815718,0.42913,4191.9,4191.7,0.315]
[1758620815919,3.66666529,4191.8,4191.7,0.5391]
[1758620816124,3.66666529,4191.8,4191.7,0.7603]
[1758620816325,3.4568,4191.8,4191.7,0.7603]
[1758620816624,3.66658857,4191.8,4191.7,0.7603]
[1758620818422,3.4568,4191.8,4191.7,0.7603]
[1758620820330,3.41752511,4191.8,4191.7,0.7603]
[1758620820526,3.2078,4191.8,4191.7,0.7603]
[1758620820718,3.4568,4191.8,4191.7,0.7603]
[1758620821225,3.2078,4191.8,4191.7,0.7603]
[1758620822327,3.2078,4191.8,4191.7,4.7603]
[1758620826928,3.2078,4192.4,4191.7,7.6531]
[1758620827229,3.2078,4192.4,4192.3,0.7378]
[1758620827425,3.4179891,4192.4,4192.3,0.7378]
[1758620828033,3.2078,4192.4,4192.3,0.7378]
[1758620828336,3.41807284,4192.4,4192.3,0.7378]
[1758620829042,3.41821237,4192.4,4192.3,0.7378]
[1758620829242,0.21041237,4192.4,4192.3,0.7378]
[1758620830838,3.41821237,4192.4,4192.3,0.7378]
[1758620835439,3.41882878,4192.4,4192.3,0.7378]
[1758620840637,3.41882878,4192.4,4192.3,0.5297]
[1758620840833,3.41882878,4192.4,4192.3,0.3218]
[1758620841039,3.66682878,4192.4,4192.3,0.3218]
[1758620842852,3.66685725,4192.4,4192.3,0.3218]
[1758620844051,3.66685725,4192.4,4192.3,0.5363]
[1758620845247,3.66683072,4192.4,4192.3,0.5363]
[1758620845950,3.66583072,4192.4,4192.3,0.5363]
[1758620846647,3.66583072,4192.4,4192.2,0.42909]
[1758620846843,0.21103072,4192.3,4192.2,0.42909]
[1758620847047,0.21103072,4192.3,4192.2,0.95679]
[1758620847648,0.45803072,4192.3,4192.2,1.16119]
[1758620848956,0.21103072,4192.3,4192.2,1.16119]
[1758620859655,7.2e-07,4192.3,4192.2,1.16119]
[1758620859867,3.2078,4192.9,4192.8,1.17043]
[1758620860160,3.75368267,4192.9,4192.8,1.17043]
[1758620861059,3.2078,4192.9,4192.8,1.17043]
[1758620867171,3.2078,4192.9,4192.5,0.42906]
[1758620867384,0.246,4192.8,4192.4,0.3218]
[1758620867562,0.54452215,4192.7,4192.3,0.42908]
[1758620867760,0.246,4192.6,4192.4,0.3218]
[1758620868161,0.246,4192.6,4192.4,0.75087]
[1758620870371,0.246,4192.6,4192.4,0.42907]
[1758620870577,0.246,4192.6,4192.3,0.3218]
[1758620870869,0.246,4192.6,4192.4,0.3218]
[1758620871070,0.246,4192.6,4192.5,0.3218]
[1758620871772,0.47964215,4192.6,4192.5,0.3218]
[1758620872671,0.47964215,4192.6,4192.5,0.4521]
[1758620873366,0.47964215,4192.6,4192.5,0.3218]
[1758620873574,0.47964215,4192.6,4192.3,0.75088]
[1758620873759,0.23364215,4192.5,4192.4,0.3218]
[1758620873960,0.42907,4192.4,4192.1,0.3218]
[1758620874172,3.2078,4192.2,4192.1,0.4291]
[1758620874475,3.44146013,4192.2,4192.1,0.6328]
[1758620874665,3.44146013,4192.2,4192.1,0.9546]
[1758620874971,3.44146013,4192.2,4192.1,1.1705]
[1758620877672,3.44151868,4192.2,4192.1,1.1705]
[1758620884871,3.44146772,4192.2,4192.1,1.1705]
[1758620891183,0.23366772,4192.2,4192.1,1.1705]
[1758620895185,3.2078,4192.8,4192.7,1.17814]
[1758620895374,3.4538,4193.3,4193.2,0.97529]
[1758620895580,3.75276571,4193.3,4193.2,1.17809]
[1758620896985,0.54496571,4193.3,4193.2,1.17809]
[1758620897288,3.2078,4193.8,4193.7,0.3365]
[1758620897585,3.99859139,4193.8,4193.6,0.42894]
[1758620897779,0.54479139,4193.7,4193.5,0.127]
[1758620897985,0.54479139,4193.6,4193.5,0.4536]
[1758620901184,0.79079139,4193.6,4193.5,0.4536]
[1758620906894,0.79079139,4193.6,4193.5,0.868]
[1758620907094,1.02115032,4193.6,4193.5,0.868]
[1758620907291,0.77515032,4193.6,4193.5,0.868]
[1758620907492,1.02115032,4193.6,4193.5,0.868]
[1758620907695,0.77515032,4193.6,4193.5,0.868]
[1758620907888,1.02115032,4193.6,4193.5,0.868]
[1758620908394,0.47635893,4193.6,4193.5,0.868]
[1758620908889,0.23035893,4193.6,4193.5,0.868]
[1758620909195,0.47635893,4193.6,4193.5,0.868]
[1758620914596,0.23035893,4193.6,4193.5,0.868]
[1758620914895,0.47635893,4193.6,4193.5,0.868]
[1758620921601,0.47643931,4193.6,4193.5,0.868]
[1758620922401,1.02239245,4193.6,4193.5,0.868]
[1758620928295,0.79195314,4193.6,4193.5,0.868]
[1758620928496,1.02052153,4193.6,4193.5,0.868]
[1758620930707,1.02052153,4193.6,4193.5,0.127]
[1758620930914,5.68793153,4193.6,4193.0,0.127]
[1758620931108,3.2078,4193.3,4193.0,0.127]
[1758620931309,1.02052153,4193.2,4193.1,0.7343]
[1758620934314,1.02050508,4193.2,4193.1,0.7343]
[1758620934918,1.02050508,4193.2,4193.1,1.1787]
[1758620937320,1.02050508,4193.2,4193.1,0.7343]
[1758620937922,1.02050508,4193.2,4193.1,0.9587]
[1758620939523,1.02050508,4193.2,4193.1,0.3053]
[1758620940520,5.25898508,4193.2,4193.1,0.3053]
[1758620940820,0.42902,4192.9,4192.7,0.73884]
[1758620941124,4.22830508,4192.8,4192.7,0.73884]
[1758620941518,8.22830508,4192.8,4192.7,0.3098]
[1758620941723,8.22830508,4192.8,4192.1,0.3098]
[1758620941920,3.2078,4192.2,4192.1,0.5197]
[1758620942119,3.68235194,4192.2,4192.1,0.5197]
[1758620942324,3.68235194,4192.2,4192.1,0.3098]
[1758620942325,4.22775242,4192.2,4192.1,0.3098]
[1758620942726,4.22775242,4192.2,4192.1,0.5197]
[1758620943130,4.22775242,4192.2,4192.1,0.3098]
[1758620944228,3.68235194,4192.2,4192.1,0.3098]
[1758620947122,0.42913,4191.9,4191.7,0.3098]
[1758620947322,0.47455194,4191.8,4191.7,0.3098]
[1758620947919,0.42914,4191.7,4191.5,0.4442]
[1758620948124,0.42917,4191.5,4191.1,0.3098]
[1758620948324,0.42921,4191.2,4191.1,0.3098]
[1758620948627,0.90376194,4191.2,4191.1,0.3098]
[1758620949531,0.42923,4190.9,4190.8,0.3098]
[1758620949724,4.11158194,4190.9,4190.8,0.3098]
[1758620950026,3.68235194,4190.9,4190.8,0.3098]
[1758620950228,3.68235194,4190.9,4190.6,0.3098]
[1758620950530,0.22855194,4190.8,4190.7,0.3118]
[1758620950723,0.47455194,4190.8,4190.7,0.5349]
[1758620952328,0.47455194,4190.8,4190.7,0.3118]
[1758620953030,0.47455194,4190.8,4190.7,0.5349]
[1758620955729,0.47455194,4190.8,4190.7,0.3118]
[1758620955930,0.2123,4189.1,4187.9,3.2078]
[1758620956225,0.4363,4187.6,4187.5,0.3563]
[1758620956425,0.0639,4188.0,4187.5,1.30787]
[1758620956426,0.3229,4188.0,4187.5,1.30787]
[1758620956736,0.7592,4187.6,4187.5,0.5349]
[1758620956931,0.66345604,4187.6,4187.5,0.8783]
[1758620957128,0.2123,4187.2,4187.1,0.2231]
[1758620957428,0.4363,4187.2,4187.1,0.7451]
[1758620957631,3.2078,4187.6,4187.5,0.1332]
[1758620957837,3.89286836,4187.6,4187.5,0.8783]
[1758620958129,0.66306836,4187.6,4187.5,0.5349]
[1758620958335,4.00313476,4187.6,4187.1,0.3118]
[1758620958535,0.66273476,4187.5,4187.4,0.7451]
[1758620958731,0.90873476,4187.5,4187.4,0.7451]
[1758620959128,0.90873476,4187.5,4187.4,0.3118]
[1758620959129,1.23163476,4187.5,4187.4,0.3118]
[1758620959336,0.3229,4187.1,4186.7,0.3118]
[1758620959525,0.7592,4186.8,4186.7,0.3118]
[1758620959727,0.7592,4186.8,4186.7,0.74146]
[1758620959728,1.0052,4186.8,4186.7,0.74146]
[1758620959929,1.0052,4186.8,4186.7,0.96456]
[1758620960333,1.0052,4186.8,4186.7,0.42966]
[1758620960530,1.0052,4186.8,4186.7,0.74146]
[1758620960927,1.0052,4186.8,4186.7,0.96456]
[1758620961133,0.47788002,4186.8,4186.7,1.17476]
[1758620961327,0.72388002,4186.8,4186.7,1.17476]
[1758620961527,0.04158002,4186.8,4186.7,1.17476]
[1758620961728,0.2123,4187.3,4187.2,1.1747]
[1758620962036,3.2078,4187.4,4187.3,0.7451]
[1758620962424,3.4538,4187.4,4187.3,0.7451]
[1758620963725,3.2078,4187.4,4187.3,0.7451]
[1758620963931,0.246,4187.4,4187.3,0.7451]
[1758620964134,3.4201,4188.0,4187.9,1.17463]
[1758620964335,4.11753939,4188.0,4187.9,1.17463]
[1758620964531,0.3229,4187.9,4187.6,0.3118]
[1758620964733,0.2123,4187.2,4187.1,0.5349]
[1758620964930,0.4593,4187.2,4187.1,0.7451]
[1758620965940,0.4593,4187.2,4187.1,1.17472]
[1758620966138,0.6833,4187.2,4187.1,1.17472]
[1758620966542,1.23364559,4187.2,4187.1,0.42962]
[1758620967040,0.91074559,4187.2,4187.1,1.17472]
[1758620967343,0.25387326,4187.8,4187.7,0.2231]
[1758620967646,0.48138673,4187.8,4187.7,0.7451]
[1758620967943,0.48138673,4187.8,4187.7,1.17465]
[1758620968131,0.22751347,4187.8,4187.7,1.17465]
[1758620968334,0.47451347,4187.8,4187.7,1.17465]
[1758620969439,0.47472619,4187.8,4187.7,1.17465]
[1758620971143,0.89262619,4187.8,4187.7,1.17465]
[1758620971339,1.20072619,4187.8,4187.7,1.17465]
[1758620971536,0.89280927,4187.8,4187.7,1.17465]
[1758620971736,0.68720927,4187.8,4187.7,1.17465]
[1758620972144,0.44020927,4187.8,4187.7,1.17465]
[1758620972350,0.68620927,4187.8,4187.7,1.17465]
[1758620972942,0.22790927,4187.8,4187.7,1.17465]
[1758620973152,0.47390927,4187.8,4187.7,1.17465]
[1758620973637,0.22790927,4187.8,4187.7,1.17465]
[1758620973846,0.47390927,4187.8,4187.7,1.17465]
[1758620974546,0.22790927,4187.8,4187.7,1.17465]
[1758620980145,0.25156631,4188.6,4188.5,1.28627]
[1758620980341,1.00663657,4188.6,4188.5,1.28627]
[1758620980942,1.21223657,4188.6,4188.5,1.28627]
[1758620981149,1.27433657,4188.6,4188.5,1.28627]
[1758620981348,1.52033657,4188.6,4188.5,1.28627]
[1758620982147,0.96623657,4188.6,4188.5,1.28627]
[1758620982355,1.52033657,4188.6,4188.5,1.28627]
[1758620983359,1.52142747,4188.6,4188.5,1.28627]
[1758620986056,1.21332747,4188.6,4188.5,1.28627]
[1758620986354,1.00772747,4188.6,4188.5,1.28627]
[1758620986858,0.76172747,4188.6,4188.5,1.28627]
[1758620987156,1.52142747,4188.6,4188.5,1.06457]
[1758620987357,1.21332747,4188.6,4188.5,1.28627]
[1758620989059,1.00772747,4188.6,4188.5,1.28627]
[1758620989260,1.21332747,4188.6,4188.5,1.28627]
[1758620989961,1.00772747,4188.6,4188.5,1.28627]
[1758620990263,0.79772747,4188.6,4188.5,1.28627]
[1758620991257,0.55172747,4188.6,4188.5,1.28627]
[1758620992062,0.77889956,4188.6,4188.5,1.28627]
[1758620995573,0.14900276,4188.6,4188.5,5.28627]
[1758620995866,2.76e-06,4188.6,4188.5,8.49407]
[1758620996367,2.76e-06,4188.6,4188.5,49.29407]
[1758620997966,3.2078,4189.7,4189.6,1.16016]
[1758620997967,3.4178,4189.7,4189.6,1.16016]
[1758620998160,3.6234,4189.7,4189.6,1.16016]
[1758620998355,3.2078,4189.7,4189.6,1.16016]
[1758620998756,3.7259,4190.2,4190.1,0.42931]
[1758620998967,4.1775,4190.2,4190.1,0.93841]
[1758620999466,3.9315,4190.2,4190.1,0.93841]
[1758620999763,4.1775,4190.2,4190.1,0.93841]
[1758621001173,4.1775,4190.2,4190.1,1.16011]
[1758621001360,3.2078,4190.2,4190.1,1.16011]
[1758621001873,3.6368,4190.7,4190.6,1.16716]
[1758621002168,4.2041,4190.7,4190.6,0.73396]
[1758621002563,4.2041,4190.7,4190.6,0.95106]
[1758621002763,3.9581,4190.7,4190.6,0.95106]
[1758621003071,3.8828,4190.7,4190.6,1.16716]
[1758621003267,4.2041,4190.7,4190.6,1.16716]
[1758621004871,4.2041,4190.7,4190.1,3.2078]
[1758621005171,0.7503,4190.2,4190.1,3.63711]
[1758621005366,0.9963,4190.2,4190.1,3.94181]
[1758621005672,0.9963,4190.2,4190.1,4.15891]
[1758621006070,0.9963,4190.2,4190.1,0.95111]
[1758621007469,0.9963,4190.2,4190.1,0.42931]
[1758621007769,0.9963,4190.2,4190.1,0.73401]
[1758621008675,0.9963,4190.2,4190.1,0.95111]
[1758621009069,3.6368,4190.7,4190.6,1.16716]
[1758621009276,3.8828,4190.7,4190.6,1.16716]
[1758621009868,4.0977813,4190.7,4190.6,1.16716]
[1758621010169,3.6377813,4190.7,4190.6,0.7379]
[1758621010876,3.4227813,4190.7,4190.6,0.7379]
[1758621013683,0.2149813,4190.7,4190.6,0.7379]
[1758621013874,0.4504,4191.1,4191.0,0.5581]
[1758621014077,0.41854649,4191.1,4191.0,0.8847]
[1758621014379,0.3233,4191.3,4191.0,0.8847]
[1758621014380,3.2078,4191.4,4191.0,0.8847]
[1758621014575,0.21406795,4191.3,4191.2,0.7588]
[1758621015881,0.41846795,4191.3,4191.2,0.7588]
[1758621016377,0.21406795,4191.3,4191.2,0.7588]
[1758621016572,0.21406795,4191.3,4191.2,0.4322]
[1758621016573,0.21392576,4191.3,4191.2,0.4322]
[1758621016772,0.4504,4191.8,4191.7,0.4322]
[1758621017076,0.66431461,4191.8,4191.7,0.7588]
[1758621017566,0.66431461,4191.8,4191.7,1.18795]
[1758621018382,0.41831461,4191.8,4191.7,1.18795]
[1758621018873,0.94461461,4191.8,4191.7,1.18795]
[1758621020283,0.94461461,4191.8,4191.7,0.42915]
[1758621022282,0.94461461,4191.8,4191.7,0.75575]
[1758621024088,0.94461461,4191.8,4191.7,0.96845]
[1758621025689,0.94461461,4191.8,4191.7,1.18795]
[1758621025885,0.21391461,4191.8,4191.7,1.18795]
[1758621026789,0.21391461,4191.8,4191.5,0.1259]
[1758621026790,3.2078,4192.0,4191.9,0.86133]
[1758621026993,3.42194687,4192.0,4191.9,1.18793]
[1758621028093,3.62634687,4192.0,4191.9,1.18793]
[1758621028487,0.5277,4191.9,4191.8,0.42913]
[1758621028697,0.5277,4191.9,4191.5,0.3266]
[1758621028698,0.4074,4191.2,4190.9,0.3266]
[1758621028889,0.94484687,4191.1,4191.0,0.8847]
[1758621029088,0.21414687,4191.1,4191.0,0.8847]
[1758621029285,3.2078,4192.0,4191.7,1.07286]
[1758621029492,3.2078,4192.0,4191.9,1.18793]
[1758621029692,3.9385,4192.5,4192.4,0.2127]
[1758621029886,4.47849327,4192.5,4192.4,0.96838]
[1758621030085,4.27549327,4192.5,4192.3,0.42908]
[1758621030294,1.51669327,4192.4,4192.3,0.42908]
[1758621032098,5.23491851,4192.4,4192.3,0.3285]
[1758621032492,4.98891851,4192.4,4192.3,0.3285]
[1758621032684,0.74439327,4192.4,4192.3,0.7614]
[1758621032992,0.99039327,4192.4,4192.3,0.7614]
[1758621035498,0.74439327,4192.4,4192.3,0.7614]
[1758621035997,0.99039327,4192.4,4192.3,0.7614]
[1758621037900,0.74439327,4192.4,4192.3,0.7614]
[1758621038093,0.99039327,4192.4,4192.3,0.3285]
[1758621039092,0.99039327,4192.4,4192.3,0.5369]
[1758621039492,0.99039327,4192.4,4192.3,0.3285]
[1758621039794,0.42909,4192.3,4192.1,0.3285]
[1758621039992,0.78599327,4192.2,4192.1,0.3285]
[1758621041303,0.99791363,4192.2,4192.1,0.3285]
[1758621046101,0.75191363,4192.2,4192.1,0.3285]
[1758621046404,0.99691363,4192.2,4192.1,0.3285]
[1758621046703,0.42916,4191.6,4191.5,0.126]
[1758621047006,0.2124,4190.7,4190.6,0.7614]
[1758621047206,0.42432036,4190.7,4190.6,0.7614]
[1758621048308,0.21192036,4190.7,4190.6,0.7614]
[1758621048508,0.21192036,4190.7,4190.6,1.19067]
[1758621050098,3.2078,4192.2,4190.7,0.56712]
[1758621050405,3.04188446,4194.0,4193.1,1.19041]
[1758621050406,3.2078,4193.2,4193.1,1.19041]
[1758621051303,3.4202,4193.2,4193.1,1.19041]
[1758621053906,3.6344,4193.2,4193.1,1.19041]
[1758621056812,3.8794,4193.2,4193.1,1.19041]
[1758621057608,3.6344,4193.2,4193.1,1.19041]
[1758621057807,3.8794,4193.2,4193.1,1.19041]
[1758621058413,4.2,4193.2,4193.1,1.19041]
[1758621061012,4.2,4193.2,4193.1,0.42901]
[1758621061212,8.2,4193.2,4193.1,0.42901]
[1758621061411,9.0189526,4193.2,4193.1,0.42901]
[1758621062118,0.4339,4192.3,4192.2,0.42911]
[1758621062318,1.21781074,4192.3,4192.2,0.42911]
[1758621063213,1.21781074,4192.3,4192.2,0.95491]
[1758621063812,0.64041074,4192.3,4192.2,1.16961]
[1758621064122,0.20651074,4192.3,4192.2,1.16961]
[1758621064418,7.4e-07,4192.3,4192.2,1.16961]
[1758621065012,0.245,4192.6,4192.5,0.42907]
[1758621065212,3.2078,4192.9,4192.8,1.16954]
[1758621066222,4.2191,4192.9,4192.8,0.95484]
[1758621066419,4.2191,4192.9,4192.8,0.42904]
[1758621066717,4.2191,4192.9,4192.8,0.74984]
[1758621066922,4.2191,4192.9,4192.8,0.95484]
[1758621067424,3.8867,4192.9,4192.8,1.16954]
[1758621068420,0.3324,4192.8,4192.7,0.42905]
[1758621068629,0.7663,4192.8,4192.7,0.42905]
[1758621068829,0.7663,4192.8,4192.7,0.95485]
[1758621069719,0.7663,4192.8,4192.7,1.16955]
[1758621070628,1.0113,4192.8,4192.7,1.16955]
[1758621071128,0.4339,4192.8,4192.7,1.16955]
[1758621071318,0.6789,4192.8,4192.7,1.16955]
[1758621071717,1.0157,4192.8,4192.7,1.16955]
[1758621072624,1.0157,4192.8,4192.7,0.42905]
[1758621072824,1.0157,4192.8,4192.7,0.96425]
[1758621073226,0.7707,4192.8,4192.7,1.17115]
[1758621073425,0.6789,4192.8,4192.7,1.17115]
[1758621073739,0.4339,4192.8,4192.7,1.17115]
[1758621073928,0.4543,4192.8,4192.7,1.17115]
[1758621074129,3.2078,4192.9,4192.7,0.84045]
[1758621074323,3.418,4192.9,4192.8,0.7421]
[1758621074522,3.9647,4192.9,4192.8,0.7421]
[1758621076221,3.6279,4192.9,4192.8,0.7421]
[1758621076627,3.8729,4192.9,4192.8,0.7421]
[1758621077427,3.663,4192.9,4192.8,0.7421]
[1758621078325,3.85610165,4192.9,4192.8,0.7421]
[1758621078720,4.40280165,4192.9,4192.8,0.7421]
[1758621079320,3.85610165,4192.9,4192.8,0.7421]
[1758621080024,0.64830165,4192.9,4192.8,0.7421]
[1758621080423,0.6486939,4192.9,4192.8,0.7421]
[1758621080624,0.8585939,4192.9,4192.8,0.7421]
[1758621081928,0.4036939,4192.9,4192.8,0.7421]
[1758621082132,0.1934939,4192.9,4192.8,0.7421]
[1758621083132,0.4552,4193.0,4192.9,0.84043]
[1758621083325,0.64875792,4193.0,4192.9,1.17113]
[1758621083626,0.40375792,4193.0,4192.9,1.17113]
[1758621087233,0.40370724,4193.0,4192.9,1.17113]
[1758621087831,0.61360724,4193.0,4192.9,1.17113]
[1758621088035,0.95040724,4193.0,4192.9,1.17113]
[1758621089434,0.61360724,4193.0,4192.9,1.17113]
[1758621091528,0.92370724,4193.0,4192.9,0.96423]
[1758621091734,4.75034036,4193.0,4192.9,0.42903]
[1758621094638,4.99534036,4193.0,4192.9,0.42903]
[1758621095436,4.93933524,4193.0,4192.9,0.76233]
[1758621097244,4.93933524,4193.0,4192.9,0.97913]
[1758621097541,4.93933524,4193.0,4192.9,1.18263]
[1758621098137,1.73153524,4193.0,4192.9,1.18263]
[1758621098330,1.17643524,4193.0,4192.9,1.18263]
[1758621098536,4.47810212,4193.0,4192.8,0.42904]
[1758621098839,1.49779003,4192.9,4192.8,0.42904]
[1758621099540,1.49779003,4192.9,4192.8,0.76234]
[1758621102037,1.28148791,4192.9,4192.8,0.76234]
[1758621102238,1.28148791,4192.9,4192.8,0.42904]
[1758621102430,1.28148791,4192.9,4192.8,0.76234]
[1758621102636,1.28148791,4192.9,4192.8,0.97914]
[1758621102836,1.52648791,4192.9,4192.8,0.97914]
[1758621104356,1.28148791,4192.9,4192.8,0.97914]
[1758621104555,1.52648791,4192.9,4192.8,0.97914]
[1758621105658,1.50589641,4192.9,4192.8,0.97914]
[1758621105844,1.52648791,4192.9,4192.8,0.97914]
[1758621109756,1.52648791,4192.9,4192.8,1.18264]
[1758621109957,3.2078,4193.0,4192.8,0.84934]
[1758621110255,3.4528,4193.0,4192.9,0.7536]
[1758621110445,4.21703719,4193.0,4192.9,0.7536]
[1758621110650,4.44093719,4193.0,4192.9,0.7536]
[1758621112158,0.46938915,4193.0,4192.9,0.7536]
[1758621112554,0.22438915,4193.0,4192.9,0.7536]
[1758621115655,3.2078,4193.5,4193.0,1.07256]
[1758621115861,3.9486,4193.5,4193.4,0.7536]
[1758621116062,4.94898108,4193.5,4193.4,0.42898]
[1758621116358,4.94898108,4193.5,4193.4,0.76228]
[1758621116559,4.94898108,4193.5,4193.4,0.97908]
[1758621117457,4.94898108,4193.5,4193.4,1.18258]
[1758621118851,4.63888108,4193.5,4193.4,1.18258]
[1758621119556,1.43108108,4193.5,4193.4,1.18258]
[1758621119756,1.18608108,4193.5,4193.4,1.18258]
[1758621119957,0.75538108,4193.5,4193.4,1.18258]
[1758621120863,0.97478108,4193.5,4193.4,1.18258]
[1758621121558,0.43492392,4193.5,4193.4,1.18258]
[1758621121859,0.97952392,4193.5,4193.4,1.18258]
[1758621122065,1.51909377,4193.5,4193.4,1.18258]
[1758621122267,0.97952392,4193.5,4193.4,1.18258]
[1758621122565,0.43492392,4193.5,4193.4,1.18258]
[1758621125570,0.21552392,4193.5,4193.4,1.18258]
[1758621125965,3.6722,4194.0,4193.9,1.17763]
[1758621126165,4.97135116,4194.0,4193.9,1.17763]
[1758621128174,4.72635116,4194.0,4193.9,1.17763]
[1758621128470,4.97135116,4194.0,4193.9,1.17763]
[1758621131873,0.75455116,4194.0,4193.9,1.17763]
[1758621132077,0.19805432,4194.0,4193.9,5.41606999]
[1758621132272,4.32e-06,4194.0,4193.9,5.41606999]
[1758621132470,3.4296,4194.6,4194.5,1.30417]
[1758621132872,3.6454,4194.6,4194.5,1.30417]
[1758621133170,3.9623,4194.6,4194.5,1.30417]
[1758621134476,3.9623,4194.6,4194.5,0.42887]
[1758621134777,0.7545,4194.0,4193.9,0.42893]
[1758621135075,0.7545,4194.0,4193.9,0.75253]
[1758621135276,0.7545,4194.0,4193.9,0.96793]
[1758621135877,0.7545,4194.0,4193.9,1.17023]
[1758621137381,0.4376,4194.0,4193.9,1.17023]
[1758621137571,0.4668,4194.2,4194.1,0.4177]
[1758621137777,0.4668,4194.2,4194.1,0.7413]
[1758621138177,0.2218,4194.2,4194.1,0.7413]
[1758621138883,0.7545,4194.2,4194.1,0.539]
[1758621144285,0.96730787,4194.2,4194.1,0.539]
[1758621144884,0.65040787,4194.2,4194.1,0.7413]
[1758621147088,0.21280787,4194.2,4194.1,0.7413]
[1758621149590,0.2218,4194.4,4194.3,0.84659]
[1758621149783,0.43475476,4194.4,4194.3,0.84659]
[1758621149983,0.43475476,4194.4,4194.3,1.17019]
[1758621150591,0.21295476,4194.4,4194.3,1.17019]
[1758621151379,0.21295476,4194.4,4194.3,5.40861]
[1758621151580,3.6706,4195.2,4195.1,0.85731]
[1758621151889,4.18861723,4195.2,4195.1,1.18161]
[1758621152088,4.51611723,4195.2,4195.1,1.18161]
[1758621153583,4.51611723,4195.2,4195.1,0.42881]
[1758621153778,4.72901214,4195.2,4195.1,0.42881]
[1758621153984,4.51611723,4195.2,4195.1,0.42881]
[1758621155796,4.51611723,4195.2,4195.1,0.75311]
[1758621155988,4.72903444,4195.2,4195.1,0.75311]